bitfinex/quotes_BTCUSD_20251117
["timestamp","ask_amount","ask_price","bid_price","bid_amount"]
[1763420352518,0.12439734,92604.0,92603.0,0.00479574]
[1763420352735,0.01580438,92604.0,92603.0,0.00479574]
[1763420354417,0.00565656,92604.0,92603.0,0.00479574]
[1763420356795,0.58963722,92630.0,92603.0,0.00479574]
[1763420356950,0.58963722,92630.0,92629.0,0.00225]
[1763420357152,0.58963722,92630.0,92629.0,0.00228]
[1763420357153,0.03044118,92630.0,92629.0,0.00228]
[1763420357946,0.03044118,92630.0,92629.0,0.00456]
[1763420358141,0.03044118,92630.0,92629.0,0.00499]
[1763420358794,0.03244118,92630.0,92629.0,0.00271]
[1763420359000,0.03243854,92630.0,92621.0,0.00499]
[1763420359258,0.03243854,92630.0,92613.0,0.00271]
[1763420359259,2.0,92621.0,92613.0,0.00271]
[1763420359491,0.10859296,92614.0,92607.0,0.00271]
[1763420359675,0.10859296,92614.0,92603.0,0.00029574]
[1763420359676,2.0,92612.0,92603.0,0.00029574]
[1763420359879,0.03043854,92611.0,92603.0,0.00029574]
[1763420360088,0.03043854,92610.0,92603.0,0.00029574]
[1763420360337,0.03043854,92609.0,92603.0,0.00029574]
[1763420360576,0.03043854,92608.0,92603.0,0.00029574]
[1763420360769,0.03043854,92607.0,92604.0,0.00271]
[1763420360969,0.03043854,92606.0,92604.0,0.00271]
[1763420361245,0.02029148,92605.0,92604.0,0.00271]
[1763420361742,0.02029148,92605.0,92604.0,0.00542]
[1763420362672,0.02129148,92605.0,92604.0,0.00813]
[1763420363577,0.02129148,92605.0,92604.0,0.01084]
[1763420364671,0.02129148,92605.0,92604.0,0.00542]
[1763420368550,0.02129148,92605.0,92604.0,0.00271]
[1763420368744,0.02129148,92605.0,92603.0,0.00029574]
[1763420368745,0.07667171,92605.0,92603.0,0.00029574]
[1763420368975,0.03044171,92604.0,92603.0,0.00029574]
[1763420369373,0.03044171,92604.0,92603.0,0.00233574]
[1763420369598,0.03044171,92604.0,92603.0,0.00437574]
[1763420371713,0.03144171,92604.0,92603.0,0.00437574]
[1763420372989,2.0,92618.0,92603.0,0.00029574]
[1763420373207,2.0,92618.0,92604.0,0.00204]
[1763420373422,2.0,92618.0,92617.0,0.00204]
[1763420373848,2.0,92618.0,92617.0,0.00408]
[1763420374282,0.14112624,92619.0,92617.0,0.00408]
[1763420374283,0.10859296,92619.0,92617.0,0.00408]
[1763420374498,0.10859296,92619.0,92618.0,0.00408]
[1763420375181,0.10859296,92619.0,92618.0,0.00308]
[1763420376087,0.10959296,92619.0,92618.0,0.00308]
[1763420377385,0.10959296,92619.0,92618.0,0.00104]
[1763420377808,0.10959296,92619.0,92618.0,0.00208]
[1763420378420,0.10959296,92619.0,92618.0,0.00104]
[1763420378634,0.10859296,92619.0,92618.0,0.00104]
[1763420378860,0.17074817,92619.0,92604.0,0.0129591]
[1763420379081,0.12152296,92605.0,92603.0,0.00029574]
[1763420379741,0.13552416,92605.0,92603.0,0.00029574]
[1763420379948,0.12259416,92605.0,92603.0,0.00029574]
[1763420380157,0.10859296,92605.0,92603.0,0.00029574]
[1763420380970,0.10859296,92605.0,92604.0,0.00104]
[1763420381295,0.10859296,92605.0,92604.0,0.00208]
[1763420381925,0.10859296,92605.0,92604.0,0.00104]
[1763420382326,2.0,92618.0,92604.0,0.00208]
[1763420382529,0.10859296,92605.0,92604.0,0.00104]
[1763420382755,0.10859296,92605.0,92603.0,0.00029574]
[1763420382968,0.10859296,92605.0,92604.0,0.00104]
[1763420383177,0.10859296,92605.0,92604.0,0.00208]
[1763420385108,0.13906885,92605.0,92604.0,0.00208]
[1763420390994,0.13906885,92605.0,92603.0,0.00029574]
[1763420391196,0.03047589,92604.0,92603.0,0.00029574]
[1763420391743,0.03047589,92604.0,92603.0,0.00133574]
[1763420393499,0.03049087,92604.0,92603.0,0.00133574]
[1763420393902,0.03049087,92604.0,92603.0,0.00237574]
[1763420394374,0.13908383,92604.0,92603.0,0.00237574]
[1763420398070,0.03049087,92604.0,92603.0,0.00237574]
[1763420398293,0.03049087,92604.0,92584.0,0.02653601]
[1763420398514,0.03049087,92603.0,92585.0,0.08916041]
[1763420398714,0.03049087,92602.0,92585.0,0.08916041]
[1763420398916,0.03049087,92601.0,92585.0,0.08916041]
[1763420399027,0.03049087,92600.0,92585.0,0.08916041]
[1763420399243,0.02032725,92599.0,92586.0,0.01296092]
[1763420399450,0.02032725,92598.0,92587.0,0.01198342]
[1763420399650,0.02032725,92597.0,92587.0,0.01198342]
[1763420399855,0.02032725,92596.0,92588.0,0.01296064]
[1763420400173,0.02032725,92595.0,92588.0,0.01296064]
[1763420400419,0.02032725,92594.0,92589.0,0.06550264]
[1763420400582,0.02032725,92593.0,92590.0,0.01296036]
[1763420400856,0.02032725,92592.0,92590.0,0.01296036]
[1763420401059,0.13785009,92619.0,92584.0,5.202e-05]
[1763420401060,0.02032725,92591.0,92584.0,5.202e-05]
[1763420401279,0.02925713,92619.0,92584.0,5.202e-05]
[1763420401444,0.03048499,92618.0,92590.0,0.60349426]
[1763420401717,1.20698852,92600.0,92584.0,5.202e-05]
[1763420401886,0.03048499,92599.0,92584.0,5.202e-05]
[1763420402140,0.01889333,92598.0,92592.0,0.10859296]
[1763420402302,0.10859296,92632.0,92601.0,0.04341874]
[1763420402643,0.01015887,92631.0,92602.0,0.1142]
[1763420402850,0.01015887,92631.0,92595.0,0.0387809]
[1763420402851,0.60349426,92620.0,92595.0,0.04341874]
[1763420403070,0.01015887,92619.0,92600.0,0.60349426]
[1763420403243,0.05844743,92650.0,92600.0,0.60349426]
[1763420403244,0.60349426,92630.0,92600.0,0.60349426]
[1763420403451,0.10859296,92628.0,92598.0,0.1142]
[1763420403650,0.01015356,92627.0,92600.0,0.60349426]
[1763420403808,0.01015356,92626.0,92598.0,0.1142]
[1763420404008,0.01015356,92625.0,92600.0,0.60349426]
[1763420404216,0.01015356,92624.0,92599.0,0.03175544]
[1763420404400,0.10859296,92628.0,92597.0,0.04341874]
[1763420404401,0.60349426,92620.0,92597.0,0.04341874]
[1763420404601,0.01015356,92619.0,92597.0,0.04341874]
[1763420404806,0.10959296,92628.0,92597.0,0.04341874]
[1763420405053,0.0101508,92627.0,92597.0,0.04341874]
[1763420405227,0.60349426,92620.0,92597.0,0.04341874]
[1763420405562,0.0101508,92619.0,92598.0,0.01522412]
[1763420405763,0.60349426,92620.0,92598.0,0.01522412]
[1763420406000,0.01014903,92619.0,92598.0,0.01522412]
[1763420406203,0.60349426,92620.0,92598.0,0.01522412]
[1763420406628,0.60349426,92620.0,92595.0,0.00022948]
[1763420406839,0.01014728,92619.0,92597.0,0.04341874]
[1763420407043,0.60349426,92620.0,92597.0,0.04341874]
[1763420407251,0.10859296,92614.0,92595.0,0.00022948]
[1763420407472,0.60349426,92610.0,92595.0,0.00022948]
[1763420407673,0.10859296,92600.0,92595.0,0.00022948]
[1763420408051,0.01014912,92599.0,92595.0,0.00022948]
[1763420408303,0.01014912,92598.0,92595.0,0.00022948]
[1763420408527,0.10859296,92600.0,92595.0,0.00022948]
[1763420408528,0.01014912,92597.0,92595.0,0.00022948]
[1763420408729,0.01014912,92596.0,92595.0,0.00022948]
[1763420414247,0.030436,92596.0,92595.0,0.00022948]
[1763420415537,0.047866,92596.0,92595.0,0.00022948]
[1763420416803,0.030436,92596.0,92595.0,0.00022948]
[1763420417378,0.10859296,92596.0,92595.0,0.00022948]
[1763420418387,0.11424952,92596.0,92595.0,0.00022948]
[1763420419086,0.10859296,92596.0,92595.0,0.00022948]
[1763420423220,0.15055296,92596.0,92595.0,0.00022948]
[1763420423456,0.12577296,92596.0,92595.0,0.00022948]
[1763420423624,0.15055296,92596.0,92595.0,0.00022948]
[1763420423826,2.15055296,92596.0,92595.0,0.00022948]
[1763420424402,2.10859296,92596.0,92595.0,0.00022948]
[1763420424889,2.10959296,92596.0,92595.0,0.00022948]
[1763420425092,2.12777296,92596.0,92595.0,0.00022948]
[1763420425297,2.12677296,92596.0,92595.0,0.00022948]
[1763420425517,2.12777296,92596.0,92595.0,0.00022948]
[1763420426169,2.11059296,92596.0,92595.0,0.00022948]
[1763420426295,2.10959296,92596.0,92595.0,0.00022948]
[1763420426749,2.11059296,92596.0,92595.0,0.00022948]
[1763420427779,1.9299114,92596.0,92595.0,0.00022948]
[1763420429360,1.95016027,92596.0,92595.0,0.00022948]
[1763420431026,1.95016027,92596.0,92595.0,0.03485948]
[1763420431027,0.02224887,92596.0,92595.0,0.03485948]
[1763420431227,0.02224887,92596.0,92595.0,0.01690948]
[1763420431781,0.02124887,92596.0,92595.0,0.01690948]
[1763420432873,0.02024887,92596.0,92595.0,0.01690948]
[1763420433089,0.02024887,92596.0,92595.0,0.00022948]
[1763420433289,0.02124887,92596.0,92595.0,0.00022948]
[1763420434091,0.02024887,92596.0,92595.0,0.00022948]
[1763420434294,0.02224887,92596.0,92595.0,0.00022948]
[1763420437175,2.0,92604.0,92595.0,0.00022948]
[1763420437308,0.10859296,92596.0,92595.0,0.00022948]
[1763420437519,0.11875156,92596.0,92595.0,0.00022948]
[1763420437939,2.0,92600.0,92595.0,0.00022948]
[1763420438134,0.10859296,92596.0,92595.0,0.00022948]
[1763420438771,0.10959296,92596.0,92595.0,0.00022948]
[1763420439763,0.10959296,92596.0,92595.0,0.01690948]
[1763420439959,0.10959296,92596.0,92595.0,0.00022948]
[1763420440662,0.11059296,92596.0,92595.0,0.00022948]
[1763420446281,0.15167296,92596.0,92595.0,0.00022948]
[1763420446637,0.11059296,92596.0,92595.0,0.00022948]
[1763420449220,0.13092938,92596.0,92595.0,0.00022948]
[1763420449828,0.14109785,92596.0,92595.0,0.00022948]
[1763420450067,0.14109785,92596.0,92595.0,0.01690948]
[1763420450279,0.14109785,92596.0,92595.0,0.04343948]
[1763420450709,0.14109785,92596.0,92595.0,0.01690948]
[1763420451154,0.14109785,92596.0,92595.0,0.00022948]
[1763420452679,0.14109785,92596.0,92595.0,0.04343948]
[1763420454378,0.14109785,92596.0,92595.0,0.00022948]
[1763420457625,0.14098985,92596.0,92595.0,0.00022948]
[1763420458505,0.14664641,92596.0,92595.0,0.00022948]
[1763420458843,0.14098985,92596.0,92595.0,0.00022948]
[1763420460332,2.24206672,92596.0,92595.0,0.00022948]
[1763420460533,2.2421375,92596.0,92595.0,0.00022948]
[1763420461010,2.15849985,92596.0,92595.0,0.00022948]
[1763420461460,0.03250489,92596.0,92595.0,0.04177948]
[1763420461946,0.03250489,92596.0,92595.0,0.00022948]
[1763420462677,0.10859296,92596.0,92595.0,0.00022948]
[1763420462920,0.10959296,92596.0,92595.0,0.00022948]
[1763420463434,0.10859296,92596.0,92595.0,0.00022948]
[1763420463969,0.10959296,92596.0,92595.0,0.00022948]
[1763420464981,0.10959296,92596.0,92595.0,0.02440948]
[1763420465465,0.10959296,92596.0,92595.0,0.00022948]
[1763420467789,2.10959296,92596.0,92595.0,0.00022948]
[1763420472854,2.10959296,92596.0,92595.0,0.01759948]
[1763420473006,2.10959296,92596.0,92595.0,0.04177948]
[1763420473202,0.10959296,92596.0,92595.0,0.04177948]
[1763420480561,0.10959296,92596.0,92595.0,0.00022948]
[1763420480921,0.10959296,92596.0,92595.0,0.04296948]
[1763420485190,0.12994394,92596.0,92595.0,0.04296948]
[1763420486276,0.12994394,92596.0,92595.0,0.00022948]
[1763420486490,0.12994394,92596.0,92595.0,0.04296948]
[1763420487943,0.12994394,92596.0,92595.0,0.01745948]
[1763420490096,0.12994394,92596.0,92595.0,0.04143948]
[1763420491322,0.02930432,92597.0,92595.0,0.04143948]
[1763420491551,0.10859296,92596.0,92595.0,0.04143948]
[1763420494880,0.10959296,92596.0,92595.0,0.04143948]
[1763420500278,0.10959296,92596.0,92595.0,0.00022948]
[1763420500504,0.10959296,92596.0,92595.0,0.02420948]
[1763420500726,0.10959296,92596.0,92595.0,0.00022948]
[1763420501958,2.16774051,92596.0,92595.0,0.00022948]
[1763420502152,2.15227296,92596.0,92595.0,0.00022948]
[1763420502347,2.16020296,92596.0,92595.0,0.00022948]
[1763420502805,2.11752296,92596.0,92595.0,0.00022948]
[1763420503219,2.11752296,92596.0,92595.0,0.03985948]
[1763420503386,2.15659484,92596.0,92595.0,0.03985948]
[1763420503980,2.15559484,92596.0,92595.0,0.03985948]
[1763420504179,2.15659484,92596.0,92595.0,0.03985948]
[1763420504797,2.15559484,92596.0,92595.0,0.03985948]
[1763420505003,2.15659484,92596.0,92595.0,0.03985948]
[1763420508103,2.15659484,92596.0,92595.0,0.00022948]
[1763420508305,2.19927484,92596.0,92595.0,0.00022948]
[1763420508518,2.16020296,92596.0,92595.0,0.00022948]
[1763420508897,2.13470296,92596.0,92595.0,0.00022948]
[1763420509096,2.11752296,92596.0,92595.0,0.00022948]
[1763420509557,2.11752296,92596.0,92595.0,0.03985948]
[1763420509558,2.15659404,92596.0,92595.0,0.03985948]
[1763420509861,2.17694432,92596.0,92595.0,0.03985948]
[1763420510240,2.17694432,92596.0,92595.0,0.01587948]
[1763420511210,2.17694432,92596.0,92595.0,0.00022948]
[1763420511414,0.13787324,92596.0,92595.0,0.00022948]
[1763420511812,0.02928028,92596.0,92595.0,0.03985948]
[1763420512450,0.13787324,92596.0,92595.0,0.03985948]
[1763420512669,0.13787324,92596.0,92595.0,0.01587948]
[1763420513070,0.13787324,92596.0,92595.0,0.03985948]
[1763420513686,0.13687324,92596.0,92595.0,0.03985948]
[1763420514174,0.45987324,92596.0,92595.0,0.03985948]
[1763420514721,0.46087324,92596.0,92595.0,0.03985948]
[1763420515967,0.46086689,92596.0,92595.0,0.03985948]
[1763420518250,0.35227393,92596.0,92595.0,0.03985948]
[1763420519217,0.38156572,92596.0,92595.0,0.03985948]
[1763420520065,0.34434393,92596.0,92595.0,0.03985948]
[1763420520265,0.34434393,92596.0,92595.0,0.04839495]
[1763420520669,0.34434393,92596.0,92595.0,0.03985948]
[1763420521056,0.34334393,92596.0,92595.0,0.03985948]
[1763420521899,0.02034393,92596.0,92595.0,0.03985948]
[1763420528265,0.00397949,92609.0,92595.0,0.03985948]
[1763420528475,0.5,92619.0,92608.0,0.02726]
[1763420528688,0.14112388,92612.0,92609.0,0.0101536]
[1763420529132,0.14112388,92612.0,92609.0,0.0351036]
[1763420529539,0.14112388,92612.0,92609.0,0.0341036]
[1763420529954,0.14112388,92612.0,92609.0,0.0091536]
[1763420530198,0.14112388,92612.0,92608.0,0.01093]
[1763420530599,0.01014519,92611.0,92608.0,0.01093]
[1763420530920,0.01014519,92610.0,92608.0,0.01093]
[1763420531132,0.01014519,92609.0,92608.0,0.03588]
[1763420531978,0.01014519,92609.0,92608.0,0.05221]
[1763420532594,0.01014446,92609.0,92603.0,0.04429092]
[1763420532810,0.01014446,92608.0,92603.0,0.01176]
[1763420533019,0.01014446,92607.0,92603.0,0.01176]
[1763420533232,0.01014446,92606.0,92603.0,0.01176]
[1763420533443,0.10959296,92612.0,92603.0,0.01176]
[1763420533444,0.01014446,92605.0,92603.0,0.01176]
[1763420533665,0.01014446,92604.0,92603.0,0.01176]
[1763420533879,0.01014446,92604.0,92592.0,0.01176]
[1763420533880,0.04068206,92604.0,92592.0,0.01176]
[1763420534091,0.01014446,92603.0,92592.0,0.01176]
[1763420534298,0.10859296,92598.0,92592.0,0.01176]
[1763420534513,0.01014446,92597.0,92592.0,0.01176]
[1763420534718,0.02190446,92597.0,92592.0,0.01176]
[1763420534922,0.02190446,92597.0,92596.0,0.03671]
[1763420536858,0.02190446,92597.0,92596.0,0.05304]
[1763420540317,0.04220702,92597.0,92596.0,0.05304]
[1763420545629,0.04220702,92597.0,92596.0,0.02809]
[1763420545857,0.05728702,92597.0,92592.0,0.01176]
[1763420546081,0.05728702,92597.0,92587.0,0.01218]
[1763420546082,0.05793702,92596.0,92587.0,0.01218]
[1763420546213,0.05793702,92596.0,92588.0,0.01296064]
[1763420546419,0.07011702,92596.0,92588.0,0.01296064]
[1763420546870,0.05461702,92596.0,92588.0,0.01296064]
[1763420547656,0.07948702,92596.0,92588.0,0.01296064]
[1763420547855,0.09498702,92596.0,92588.0,0.01296064]
[1763420548284,0.1194852,92596.0,92588.0,0.00977765]
[1763420548491,0.03044702,92595.0,92588.0,0.00977765]
[1763420548716,0.03044702,92594.0,92587.0,0.02195779]
[1763420548859,0.03044702,92593.0,92587.0,0.02195779]
[1763420549071,0.03044702,92592.0,92587.0,0.02195779]
[1763420549273,0.03044702,92591.0,92587.0,0.02195779]
[1763420549481,0.03044702,92590.0,92587.0,0.02195779]
[1763420549691,0.03044702,92589.0,92587.0,0.02195779]
[1763420549910,0.03044702,92588.0,92587.0,0.02195779]
[1763420550535,0.05511904,92588.0,92587.0,0.02195779]
[1763420550959,0.05511904,92588.0,92587.0,0.06189779]
[1763420551382,0.05512862,92588.0,92587.0,0.06189779]
[1763420554038,0.05512862,92588.0,92587.0,0.06212726]
[1763420557579,0.05513874,92588.0,92587.0,0.06212726]
[1763420562683,0.03046672,92588.0,92587.0,0.06212726]
[1763420563765,0.03047492,92588.0,92587.0,0.06212726]
[1763420578540,0.07327475,92598.0,92587.0,0.06212726]
[1763420578761,0.07327475,92598.0,92597.0,0.01532]
[1763420579181,0.08859475,92598.0,92597.0,0.01532]
[1763420579386,0.08859475,92598.0,92597.0,0.03994]
[1763420580610,0.0056596,92607.0,92597.0,0.046285]
[1763420580818,0.0056596,92607.0,92606.0,0.02191]
[1763420581020,0.03253469,92607.0,92606.0,0.02191]
[1763420581175,0.10859296,92612.0,92606.0,0.04523]
[1763420581496,0.10859296,92612.0,92611.0,0.016]
[1763420581947,0.13782296,92612.0,92611.0,0.016]
[1763420582161,0.01125,92614.0,92606.0,0.00591]
[1763420582403,0.10859296,92609.0,92607.0,0.02332]
[1763420582613,0.10859296,92609.0,92606.0,0.00591]
[1763420582821,0.10859296,92609.0,92607.0,0.02332]
[1763420583047,0.10859296,92609.0,92606.0,0.00591]
[1763420583269,0.10859296,92609.0,92600.0,0.00591]
[1763420583493,0.10859296,92609.0,92602.0,0.00991]
[1763420584168,0.10859296,92609.0,92602.0,0.03323]
[1763420585087,0.02681,92603.0,92590.0,0.0116]
[1763420585302,0.60378933,92600.0,92590.0,0.0116]
[1763420585520,0.38600439,92600.0,92591.0,0.01296022]
[1763420585747,0.40865439,92600.0,92591.0,0.01296022]
[1763420587663,0.38600439,92600.0,92591.0,0.01296022]
[1763420587866,0.02265,92599.0,92587.0,0.01319025]
[1763420588005,0.19287638,92600.0,92587.0,0.01319025]
[1763420588203,0.60378933,92597.0,92587.0,0.01319025]
[1763420589011,0.60378933,92597.0,92587.0,0.00022947]
[1763420590875,0.03050442,92596.0,92588.0,0.0116]
[1763420591090,0.03050442,92595.0,92588.0,0.0116]
[1763420591308,0.03050442,92594.0,92589.0,0.02332]
[1763420591476,0.03050442,92593.0,92589.0,0.02332]
[1763420591679,0.03050442,92592.0,92588.0,0.0116]
[1763420591860,0.03050442,92591.0,92588.0,0.0116]
[1763420592065,0.03050442,92590.0,92588.0,0.0116]
[1763420592279,0.03050442,92589.0,92588.0,0.03492]
[1763420592437,0.06304105,92589.0,92588.0,0.03492]
[1763420592643,0.06304105,92589.0,92588.0,0.05092]
[1763420593712,0.06304105,92589.0,92587.0,0.00022947]
[1763420593922,0.03050442,92588.0,92587.0,0.00022947]
[1763420594426,0.03050442,92588.0,92587.0,0.02782947]
[1763420594772,0.03050442,92588.0,92587.0,0.05114947]
[1763420595521,0.06304105,92588.0,92587.0,0.05114947]
[1763420608506,0.06870089,92588.0,92587.0,0.05114947]
[1763420611724,0.06870089,92588.0,92587.0,0.05858962]
[1763420611940,0.05287291,92588.0,92587.0,0.0715504]
[1763420614113,0.05287291,92588.0,92587.0,0.05858962]
[1763420614321,0.05287291,92588.0,92587.0,0.0715504]
[1763420615279,0.05287291,92588.0,92587.0,0.06411025]
[1763420616443,0.05287291,92588.0,92587.0,0.05114947]
[1763420619047,0.05287291,92588.0,92587.0,0.06411025]
[1763420619222,0.02033628,92588.0,92587.0,0.05114947]
[1763420619422,0.02033628,92588.0,92587.0,0.06411025]
[1763420619654,0.03252922,92596.0,92587.0,0.06411025]
[1763420619655,0.03252922,92596.0,92588.0,0.04341874]
[1763420619892,0.55724203,92610.0,92596.0,0.04341874]
[1763420620095,0.03252527,92609.0,92598.0,0.04341874]
[1763420620297,0.00077024,92633.0,92604.0,0.04341874]
[1763420620508,0.00077024,92633.0,92619.0,0.02803]
[1763420620672,0.55724203,92629.0,92619.0,0.01192]
[1763420620872,0.55724203,92629.0,92624.0,0.01192]
[1763420621076,0.01283178,92643.0,92628.0,0.01611]
[1763420621284,1.11448406,92640.0,92629.0,0.02327]
[1763420621643,0.01014711,92639.0,92631.0,0.01192]
[1763420621863,1.11448406,92640.0,92631.0,0.01192]
[1763420621864,0.01014711,92638.0,92632.0,0.03622448]
[1763420622084,6.154e-05,92640.0,92632.0,0.03622448]
[1763420622322,6.154e-05,92640.0,92639.0,0.02803]
[1763420622533,6.154e-05,92640.0,92639.0,0.06858474]
[1763420622754,6.154e-05,92640.0,92639.0,0.0513]
[1763420623405,0.00081245,92640.0,92631.0,0.01192]
[1763420623623,0.00081245,92640.0,92624.0,0.01192]
[1763420623624,0.01011874,92639.0,92624.0,0.01192]
[1763420623836,0.10859296,92627.0,92616.0,0.01192]
[1763420624050,0.01172,92625.0,92616.0,0.01192]
[1763420624267,0.01012074,92624.0,92617.0,0.02327]
[1763420624481,0.0008435,92624.0,92619.0,0.03519]
[1763420624692,0.0008435,92624.0,92623.0,0.01611]
[1763420625159,0.0008435,92624.0,92623.0,0.03938]
[1763420625973,0.0396835,92624.0,92608.0,0.01192]
[1763420626232,0.0396835,92624.0,92592.0,0.01192]
[1763420626233,0.10859296,92617.0,92602.0,0.01192]
[1763420626440,0.55724203,92610.0,92602.0,0.01192]
[1763420626644,0.55724203,92610.0,92603.0,0.02327]
[1763420627029,0.55724203,92612.0,92603.0,0.02327]
[1763420627228,0.02327,92609.0,92603.0,0.02327]
[1763420627559,0.02327,92609.0,92600.0,0.01192]
[1763420627760,0.02327,92609.0,92595.0,0.02432736]
[1763420627761,0.02696,92604.0,92603.0,5.202e-05]
[1763420627909,0.01172,92608.0,92603.0,5.202e-05]
[1763420628128,0.0236,92607.0,92603.0,5.202e-05]
[1763420628290,0.01172,92608.0,92603.0,5.202e-05]
[1763420628493,0.01012143,92607.0,92603.0,5.202e-05]
[1763420628705,0.01172,92608.0,92603.0,5.202e-05]
[1763420630097,0.02327,92609.0,92603.0,5.202e-05]
[1763420630298,0.01012191,92608.0,92603.0,5.202e-05]
[1763420630497,0.02327,92609.0,92603.0,5.202e-05]
[1763420630717,0.01012249,92608.0,92603.0,5.202e-05]
[1763420630938,0.02327,92609.0,92603.0,5.202e-05]
[1763420631112,0.01012245,92608.0,92603.0,5.202e-05]
[1763420631331,0.02327,92609.0,92603.0,5.202e-05]
[1763420631532,0.01012308,92608.0,92603.0,5.202e-05]
[1763420631785,0.02024616,92607.0,92603.0,5.202e-05]
[1763420631953,0.02024616,92606.0,92603.0,5.202e-05]
[1763420632170,0.02024616,92605.0,92603.0,5.202e-05]
[1763420632518,0.02024616,92604.0,92603.0,5.202e-05]
[1763420632927,0.02024616,92608.0,92603.0,5.202e-05]
[1763420633128,0.02024616,92607.0,92603.0,5.202e-05]
[1763420633350,0.02024616,92606.0,92603.0,5.202e-05]
[1763420633560,0.02024616,92605.0,92603.0,5.202e-05]
[1763420633808,0.02024616,92604.0,92603.0,0.02332202]
[1763420633983,0.04854616,92604.0,92603.0,0.02332202]
[1763420634279,0.04854616,92604.0,92603.0,0.03943202]
[1763420634512,0.04854616,92604.0,92603.0,0.01616202]
[1763420636065,0.04854616,92604.0,92603.0,5.202e-05]
[1763420638447,0.04854616,92604.0,92603.0,0.03943202]
[1763420638897,0.55724203,92613.0,92603.0,0.01616202]
[1763420639110,0.01012868,92612.0,92604.0,0.02327]
[1763420639279,0.01012868,92611.0,92604.0,0.02327]
[1763420639480,0.01012868,92610.0,92603.0,5.202e-05]
[1763420639686,0.01012868,92609.0,92603.0,5.202e-05]
[1763420639885,0.01012868,92608.0,92603.0,5.202e-05]
[1763420640098,0.01012868,92607.0,92603.0,5.202e-05]
[1763420640434,0.01012868,92606.0,92603.0,5.202e-05]
[1763420640635,0.0236,92611.0,92603.0,5.202e-05]
[1763420640636,0.01552,92604.0,92603.0,5.202e-05]
[1763420640864,0.02564868,92604.0,92603.0,5.202e-05]
[1763420640981,0.01012868,92604.0,92603.0,5.202e-05]
[1763420641428,0.02564868,92604.0,92603.0,5.202e-05]
[1763420641633,2.04924868,92604.0,92603.0,5.202e-05]
[1763420641831,2.09001278,92604.0,92603.0,5.202e-05]
[1763420642433,2.04924868,92604.0,92603.0,5.202e-05]
[1763420644302,2.05024868,92604.0,92603.0,5.202e-05]
[1763420645533,2.02664868,92604.0,92577.0,0.00174954]
[1763420645731,2.02664868,92604.0,92570.0,0.02376]
[1763420645732,0.02046,92578.0,92570.0,0.0004]
[1763420645942,0.01156,92592.0,92571.0,0.02336]
[1763420646143,0.56880203,92600.0,92571.0,0.02336]
[1763420646144,1.11448406,92581.0,92577.0,0.01603]
[1763420646406,0.00557,92597.0,92580.0,0.01603]
[1763420646407,1.11448406,92587.0,92580.0,0.01603]
[1763420646585,1.11448406,92590.0,92581.0,0.01296162]
[1763420646725,0.01012622,92589.0,92581.0,0.01296162]
[1763420646932,0.01012622,92588.0,92581.0,0.01296162]
[1763420647128,0.01012622,92587.0,92581.0,0.01296162]
[1763420647325,0.01012622,92586.0,92581.0,0.01296162]
[1763420647585,1.11448406,92590.0,92581.0,0.01296162]
[1763420647789,0.01012399,92589.0,92581.0,0.01296162]
[1763420647948,0.01012399,92588.0,92581.0,0.01296162]
[1763420648149,0.01012399,92587.0,92581.0,0.01296162]
[1763420648372,1.11448406,92590.0,92581.0,0.01296162]
[1763420648554,0.01012192,92589.0,92581.0,0.01296162]
[1763420648755,0.01012192,92588.0,92581.0,0.01296162]
[1763420648977,1.11448406,92590.0,92581.0,0.01296162]
[1763420648978,0.01012192,92587.0,92581.0,0.01296162]
[1763420649182,1.11448406,92590.0,92581.0,0.01296162]
[1763420649382,0.0101199,92589.0,92581.0,0.01296162]
[1763420649591,0.0101199,92588.0,92581.0,0.01296162]
[1763420649791,0.0101199,92587.0,92581.0,0.01296162]
[1763420650037,1.11448406,92590.0,92581.0,0.01296162]
[1763420650244,0.0101199,92589.0,92581.0,0.01296162]
[1763420650448,0.0101199,92588.0,92581.0,0.01296162]
[1763420650643,0.0101199,92587.0,92581.0,0.01296162]
[1763420650848,0.02023946,92586.0,92581.0,0.01296162]
[1763420651149,0.02023946,92585.0,92581.0,0.01296162]
[1763420651350,0.02023946,92584.0,92581.0,0.01296162]
[1763420651555,0.02023946,92583.0,92581.0,0.01296162]
[1763420651780,0.02023946,92582.0,92581.0,0.01296162]
[1763420651992,0.02023946,92584.0,92581.0,0.01296162]
[1763420652188,1.11448406,92590.0,92581.0,0.01296162]
[1763420652189,0.02336,92582.0,92581.0,0.01296162]
[1763420652394,0.04359946,92582.0,92581.0,0.01296162]
[1763420652960,0.04359946,92582.0,92581.0,0.05235162]
[1763420653142,0.04359946,92582.0,92581.0,0.05874778]
[1763420653496,0.04359946,92582.0,92581.0,0.05235162]
[1763420653497,0.05373584,92582.0,92581.0,0.05235162]
[1763420655457,0.05373584,92582.0,92581.0,0.01296162]
[1763420657117,0.05373584,92582.0,92581.0,0.02899162]
[1763420657515,1.12604406,92591.0,92581.0,0.02899162]
[1763420657516,0.01156,92590.0,92581.0,0.02939322]
[1763420657842,0.02899162,92582.0,92581.0,0.02899162]
[1763420658049,0.02899162,92582.0,92581.0,0.01296162]
[1763420658835,2.0,92590.0,92570.0,0.0004]
[1763420659038,1.11448406,92580.0,92571.0,0.0248]
[1763420659505,1.11448406,92580.0,92579.0,0.02702]
[1763420659933,0.0248,92584.0,92579.0,0.05182]
[1763420660282,0.0248,92584.0,92583.0,0.01518]
[1763420660826,0.0248,92584.0,92583.0,0.03998]
[1763420661192,0.55724203,92593.0,92583.0,0.03998]
[1763420661361,0.55724203,92593.0,92579.0,0.01184]
[1763420661362,0.55724203,92593.0,92592.0,0.02702]
[1763420661563,0.03253469,92596.0,92592.0,0.02702]
[1763420661765,0.03253469,92596.0,92593.0,0.0248]
[1763420662015,0.03253469,92596.0,92595.0,0.01518]
[1763420662620,0.03253469,92596.0,92595.0,0.03998]
[1763420665595,0.55724203,92603.0,92595.0,0.03998]
[1763420665735,0.55724203,92603.0,92602.0,0.02702]
[1763420665930,2.0,92603.0,92602.0,0.02702]
[1763420666131,2.0,92603.0,92602.0,0.05182]
[1763420666337,2.02702,92603.0,92602.0,0.02702]
[1763420666555,0.02702,92603.0,92596.0,0.01184]
[1763420666963,0.02702,92603.0,92587.0,0.00022947]
[1763420666964,0.10859296,92602.0,92587.0,0.00022947]
[1763420667145,0.55724203,92597.0,92587.0,0.02502947]
[1763420667547,0.55724203,92597.0,92596.0,0.01184]
[1763420667754,0.10859296,92602.0,92596.0,0.02702]
[1763420669485,0.03045829,92601.0,92596.0,0.02702]
[1763420669695,0.03045829,92600.0,92588.0,0.02442]
[1763420669902,0.03045829,92600.0,92587.0,0.00022947]
[1763420669903,2.0,92597.0,92587.0,0.00022947]
[1763420670114,2.0,92595.0,92587.0,0.00022947]
[1763420670328,0.03045829,92594.0,92587.0,0.00022947]
[1763420670537,0.03045829,92593.0,92587.0,0.00022947]